Cogmind - Beta 15 @@@ ROGUE MODE // 2025.05.03 @ 12:47:25 Player: Some Pennies Result: Self-destructed Performance ------------- Evolutions (1) 500 Regions Visited (5) 1000 Robots Destroyed (81) 405 Value Destroyed (1457) 1457 Prototype IDs (41) 820 Alien Tech Used (0) 0 Bonus (328) 328 TOTAL SCORE: 4510 Bonus ------- Follower Combat Kills 28 Aligned with FarCom 300 Cogmind --------- Core Integrity 133/400 Matter 5/300 Energy 265/265 System Corruption 0% Temperature Cool (0) Movement Core (3600) Ox71 Location -9/Exiles Parts ------- > --- POWER (1) -------- Reinforced Ion Engine > --- PROPULSION (3) --- (None) > --- UTILITY (3) ------ Humpback > --- WEAPON (2) ------- Improved Assault Rifle Improved Assault Rifle > --- INVENTORY (35) --- Heavy Ion Engine Light Treads Light Treads Light Treads Light Treads Light Treads Armored Wheel Cooling System Huge Storage Unit Light Armor Plating Medium Armor Plating Hardened Light Armor Plating Hardened Light Armor Plating Improved EM Shotgun Heavy Assault Rifle Heavy Assault Rifle Improved Assault Rifle Mini Grenade Launcher Mini Grenade Launcher Datajack Enhanced Flamer Peak State ------------ > --- POWER ------------ Reinforced Ion Engine > --- PROPULSION ------- Light Treads Light Treads Light Treads > --- UTILITY ---------- Cooling System Huge Storage Unit Hardened Light Armor Plating > --- WEAPON ----------- Advanced Beam Cannon Advanced Beam Cannon > --- INVENTORY -------- Heavy Ion Engine Light Treads Light Treads Light Treads Light Treads Light Treads Armored Wheel Seismic Detector Light Armor Plating Medium Armor Plating Medium Armor Plating Hardened Light Armor Plating Hacking Suite Trap Extractor Improved EM Shotgun Heavy Assault Rifle Heavy Assault Rifle Improved Assault Rifle Improved Assault Rifle Improved Assault Rifle Improved Assault Rifle Mini Grenade Launcher Mini Grenade Launcher Datajack Enhanced Flamer [Rating: 21] Favorites ----------- Power Reinforced Ion Engine Engine Reinforced Ion Engine Propulsion Light Treads Treads Light Treads Leg Aluminum Leg Wheel Armored Wheel Utility Cooling System Device Cooling System Storage Huge Storage Unit Protection Light Armor Plating Weapon Advanced Beam Cannon Energy Gun Beam Rifle Energy Cannon Advanced Beam Cannon Ballistic Gun Assault Rifle Ballistic Cannon Improved Light Cannon Launcher Grenade Launcher Special Weapon Mining Laser Special Melee Weapon Datajack Build | -11 -10 -10 -9 -9 -9 ------- Run | Yrd Mat Min Mat Min Exi Slots Evolved 2 | . . . 2 . . Power . | . . . . . . Propulsion 1 | . . . 1 . . Utility 1 | . . . 1 . . Weapon . | . . . . . . Parts Attached 49 | 7 2 3 26 6 5 Power 5 | 1 . 1 2 1 . Engine 5 | 1 . 1 2 1 . Core . | . . . . . . Reactor . | . . . . . . Propulsion 16 | 2 . . 11 3 . Treads 14 | 2 . . 9 3 . Leg 1 | . . . 1 . . Wheel 1 | . . . 1 . . Hover . | . . . . . . Flight . | . . . . . . Utility 12 | 2 2 1 4 2 1 Device 4 | 1 1 1 1 . . Storage 3 | 1 1 . . . 1 Processor . | . . . . . . Hackware . | . . . . . . Protection 5 | . . . 3 2 . Artifact . | . . . . . . Weapon 16 | 2 . 1 9 . 4 Energy Gun 2 | . . . 2 . . Energy Cannon 2 | . . . 2 . . Ballistic Gun 6 | 2 . . 2 . 2 Ballistic Cannon 1 | . . . 1 . . Launcher 2 | . . 1 1 . . Special Weapon 2 | . . . 1 . 1 Impact Weapon . | . . . . . . Slashing Weapon . | . . . . . . Piercing Weapon . | . . . . . . Special Melee Weapon 1 | . . . . . 1 Unidentified Prototypes 4 | . . . 4 . . Parts Lost 8 | . . . 3 . 5 Power . | . . . . . . Propulsion 5 | . . . 2 . 3 Utility 1 | . . . . . 1 Weapon 2 | . . . 1 . 1 Highest Loss Streak 5 | . . . 1 . 5 To Critical Strikes 3 | . . . . . 3 Average Backups 21 | 4 7 8 23 25 23 Power 1 | . 1 1 1 1 1 Propulsion 4 | 1 1 1 5 6 6 Utility 5 | . 1 2 6 7 6 Weapon 8 | 1 3 3 9 10 8 Tool/Special . | . . . . . . Unused Backups 31 | . 1 1 14 1 14 Power 6 | . . . 3 . 3 Propulsion 4 | . . 1 . . 3 Utility 10 | . . . 4 1 5 Weapon 11 | . 1 . 7 . 3 Tool/Special . | . . . . . . Average Slot Usage (%) 98 | . 100 100 99 100 93 Engine 11 | . 14 14 11 11 11 Treads 31 | . 28 28 32 33 32 Device 11 | . 14 14 13 11 5 Storage 11 | . 14 14 11 11 11 Protection 8 | . . . 7 11 10 Energy Cannon 11 | . . . 15 21 3 Ballistic Gun 9 | . 28 27 3 . 15 Peak Build Rating 21 | 7 7 7 20 21 21 Average Rating 16 | 5 6 7 17 19 19 On Entrance 10 | . 7 7 7 19 21 Naked Turns . | . . . . . . Heaviest Build 296 | 13 13 15 105 107 296 Greatest Support 60 | 40 40 40 60 60 60 Greatest Overweight (x) 4 | . . . 2 1 4 Average Overweight (x) . | . . . . 1 1 Largest Inventory Capacity 35 | 8 25 8 25 25 35 Average Capacity 23 | 7 8 8 24 25 29 Most Carried 25 | 7 8 8 25 25 25 Average Carried 21 | 4 7 7 23 25 23 Final Capacity 35 | 8 8 8 25 25 35 Final Carried 25 | 7 8 8 25 25 21 Class Distribution -------------------- 70% | Scavenger-Mutant 18% | Mutant 11% | Hauler-Mutant Dominant Class ---------------- Mutant | -10/Materials Mutant | -10/Mines Scavenger-Mutant | -9/Materials Scavenger-Mutant | -9/Mines Scavenger-Mutant | -9/Exiles Resources | -11 -10 -10 -9 -9 -9 ----------- Run | Yrd Mat Min Mat Min Exi Matter Collected 1359 | 342 . 198 659 160 . Remotely . | . . . . . . Salvage Created 2581 | 205 . 168 1793 395 20 Parts 170 | 16 . 19 103 32 . Haulers Intercepted 6 | . . . 6 . . Recyclers Shooed 4 | . . . 3 1 . Parts Field Recycled . | . . . . . . Retrieved Matter . | . . . . . . Parts Self-Destructed . | . . . . . . Prevented . | . . . . . . Kills | -11 -10 -10 -9 -9 -9 ------- Run | Yrd Mat Min Mat Min Exi Combat Hostiles Destroyed 50 | . . 6 28 13 3 Guns 14 | . . 3 10 . 1 Cannons 18 | . . . 10 8 . AOE 17 | . . 3 7 5 2 Classes Destroyed 13 | 3 . 2 6 2 . Worker 7 | 1 . . 5 1 . Builder 1 | . . . . 1 . Tunneler 7 | 5 . 2 . . . Hauler 6 | . . . 6 . . Recycler 7 | 1 . . 5 1 . Mechanic 1 | . . . 1 . . Operator 1 | . . . 1 . . Watcher 5 | . . . 5 . . Swarmer 20 | . . 4 10 6 . Grunt 16 | . . 2 9 5 . Brawler 3 | . . . 2 1 . Sentry 7 | . . . 7 . . Assembled 4 | . . . . 1 3 Best Kill Streak 5 | 5 . 3 4 4 3 Combat Bots Only 4 | . . 3 4 4 3 Max Kills in Single Turn 4 | 1 . 2 3 4 1 Gunslinging . | . . . . . . Exploded 4 | . . 2 3 4 1 Melee . | . . . . . . Uniques/NPCs Destroyed . | . . . . . . Combat | -11 -10 -10 -9 -9 -9 -------- Run | Yrd Mat Min Mat Min Exi Hostile Shots Fired 204 | . . 28 81 19 76 Missed 49 | . . 10 19 8 12 Hits 155 | . . 18 62 11 64 Melee 2 | . . . . . 2 Projectile 153 | . . 18 62 11 62 Critical Strikes 35 | . . . 5 . 30 Damage Taken 2370 | . . 228 880 134 1128 Core 287 | . . 20 80 28 159 Absorbed by Shields . | . . . . . . Regen/Repaired (Parts) 255 | . . . 255 . . Core Remaining (%) 96 | 100 . 92 . . . Volleys Fired 205 | 12 . 28 105 24 36 Largest 2 | 2 . 2 2 2 2 Hottest 136 | 40 . 40 136 136 46 Shots Fired 385 | 24 . 52 200 46 63 Gun 222 | 24 . 48 90 . 60 Cannon 147 | . . . 103 44 . Launcher 14 | . . 4 5 2 3 Special 2 | . . . 2 . . Kinetic 201 | 24 . 48 69 . 60 Thermal 170 | . . . 126 44 . Explosive 14 | . . 4 5 2 3 Electromagnetic . | . . . . . . Robot Hit Streak 58 | 4 . 3 20 6 58 Robot Miss Streak 8 | 4 . 6 8 4 1 Penetration Max . | . . . . . . Secondary Targets 1 | . . . 1 . . Max Gunslinging Chain 1 | . . . 1 . . Shots Hit Robots 246 | 10 . 23 128 23 62 Core Hits 107 | 7 . 11 58 17 14 Critical Kills 4 | . . . 4 . . Critical Parts Destroyed . | . . . . . . Critical Strikes 6 | . . . 6 . . Burn 2 | . . . 2 . . Meltdown 3 | . . . 3 . . Destroy 1 | . . . 1 . . Melee Attacks 4 | . . . . . 4 Impact . | . . . . . . Slashing . | . . . . . . Piercing . | . . . . . . Sneak Attacks 4 | . . . . . 4 Combat Hostiles . | . . . . . . Follow-up Attacks . | . . . . . . Damage Inflicted 5128 | 166 . 417 2806 755 984 Guns 2179 | 166 . 289 850 . 874 Cannons 1835 | . . . 1363 472 . Explosions 1108 | . . 128 587 283 110 Melee . | . . . . . . Ramming 6 | . . . 6 . . Kinetic 1933 | 166 . 289 604 . 874 Thermal 2238 | . . . 1766 472 . Explosive 951 | . . 128 430 283 110 Electromagnetic . | . . . . . . Impact . | . . . . . . Slashing . | . . . . . . Piercing . | . . . . . . Highest Corruption . | . . . . . . Average Corruption . | . . . . . . Corruption Purged . | . . . . . . Corruption Blocked . | . . . . . . Overload Shots . | . . . . . . Overflow Damage 131 | . . . 129 2 . Projectiles 32 | . . . 30 2 . Explosions 99 | . . . 99 . . Melee . | . . . . . . Knockbacks 1 | . . . 1 . . Impact 1 | . . . 1 . . Kinetic . | . . . . . . Secondary . | . . . . . . Self-Inflicted Damage 237 | . . . 161 26 50 Shots 6 | . . . 3 1 2 Rammed 2 | . . . 2 . . Targets Rammed 2 | . . . 2 . . Kicked . | . . . . . . Crushed . | . . . . . . Highest Temperature 132 | . . 2 111 132 . Average Temperature 30 | . . 2 32 31 . Received Heat Transfer 408 | . . 99 267 42 . Siege Activations . | . . . . . . Martial Activations . | . . . . . . Shielding Activations . | . . . . . . Robots Disrupted . | . . . . . . Combat Hostiles . | . . . . . . Robots Corrupted . | . . . . . . Combat Hostiles . | . . . . . . Parts Fried . | . . . . . . Impact Corruptions . | . . . . . . Robots Melted 3 | . . . 3 . . Combat Hostiles 1 | . . . 1 . . Parts Melted 4 | . . . 4 . . Heat Transferred 4170 | . . . 3319 851 . Parts Sabotaged . | . . . . . . Parts Stolen . | . . . . . . Parts Stripped . | . . . . . . Power Chain Reactions . | . . . . . . Alert | -11 -10 -10 -9 -9 -9 ------- Run | Yrd Mat Min Mat Min Exi Maximum Alert Level 1 | . . . 1 . . Low Security (%) 74 | 100 100 100 56 100 . Level 1 25 | . . . 43 . . Level 2 . | . . . . . . Level 3 . | . . . . . . Level 4 . | . . . . . . Level 5 . | . . . . . . High Security . | . . . . . . Max Security . | . . . . . . Peak Influence 305 | 15 . 98 305 165 . Initial 64 | . . . . 64 . Average 109 | 2 . 17 164 52 . Influence Increases 1659 | 35 . 193 985 446 . Destroy 0b10 Robot/C 1000 | . . 120 560 320 . Destroy 0b10 Robot/NC 175 | 35 . 10 115 15 . Destroy Leader 202 | . . 20 152 30 . Allied During Kill 33 | . . . . 33 . Successful Hack 29 | . . . 29 . . Disable Machine 60 | . . . 60 . . Destroy Structure 115 | . . 28 69 18 . Lose Combat Pursuer 45 | . . 15 . 30 . Influence Decreases 1659 | 35 . 193 820 610 1 Entered New Map 102 | . . . . 101 1 Time Decay 1326 | 35 . 193 650 448 . Lost Part 20 | . . . 20 . . Lost Ally 61 | . . . . 61 . Purge Threat 150 | . . . 150 . . Squads Dispatched . | . . . . . . Investigation . | . . . . . . Extermination . | . . . . . . Reinforcement . | . . . . . . Assault . | . . . . . . Garrison . | . . . . . . Intercept . | . . . . . . Searches Triggered . | . . . . . . Construction Impeded . | . . . . . . Haulers Reinforced . | . . . . . . Active Scanning Responses . | . . . . . . Cargo Convoy Interrupts . | . . . . . . Stealth | -11 -10 -10 -9 -9 -9 --------- Run | Yrd Mat Min Mat Min Exi Distress Signals 3 | . . . 3 . . Communications Jammed . | . . . . . . Distress Signals . | . . . . . . Times Spotted 81 | . . 8 47 19 7 Peak Tracking Total 9 | . . 3 4 4 9 Tactical Retreats 3 | . . 1 . 2 . Traps | -11 -10 -10 -9 -9 -9 ------- Run | Yrd Mat Min Mat Min Exi Traps Triggered . | . . . . . . Indirectly . | . . . . . . Trap Hack Attempts . | . . . . . . Triggered . | . . . . . . Disarmed . | . . . . . . Reprogrammed . | . . . . . . Reused . | . . . . . . Traps Extracted . | . . . . . . Installed . | . . . . . . Triggered . | . . . . . . Machines | -11 -10 -10 -9 -9 -9 ---------- Run | Yrd Mat Min Mat Min Exi Machines Disabled 6 | . . . 4 . 2 Max in Single Turn 3 | . . . 3 . 1 Machines Repaired . | . . . . . . Machines Dismantled . | . . . . . . Machines Sabotaged . | . . . . . . Overloaded Fab Kills . | . . . . . . Hacking | -11 -10 -10 -9 -9 -9 --------- Run | Yrd Mat Min Mat Min Exi Machines Accessed 15 | . 2 . 11 . 2 Terminals 11 | . 2 . 9 . . Fabricators . | . . . . . . Repair Stations 1 | . . . 1 . . Recycling Units . | . . . . . . Scanalyzers 1 | . . . 1 . . Garrison Access . | . . . . . . Total Hacks 54 | . 5 . 44 . 5 Successful 30 | . 1 . 24 . 5 Failed 24 | . 4 . 20 . . Catastrophic 3 | . 1 . 2 . . Database Lockouts . | . . . . . . Manual 25 | . 3 . 21 . 1 Terminals 36 | . 5 . 31 . . Fabricators . | . . . . . . Repair Stations 5 | . . . 5 . . Recycling Units . | . . . . . . Scanalyzers 8 | . . . 8 . . Garrison Access . | . . . . . . Terminal Hacks 9 | . . . 4 . 5 Record 4 | . . . . . 4 Robot Analysis 1 | . . . 1 . . Terminal Index 1 | . . . 1 . . Unreport Threat 1 | . . . 1 . . Zone Layout 1 | . . . 1 . . Proto ID Catalog 1 | . . . . . 1 Fabricator Hacks . | . . . . . . Repair Station Hacks 4 | . . . 4 . . Scan Component 2 | . . . 2 . . Repair 2 | . . . 2 . . Recycling Unit Hacks . | . . . . . . Scanalyzer 8 | . . . 8 . . Insert Component 4 | . . . 4 . . Analyze 4 | . . . 4 . . Garrison Access Hacks . | . . . . . . Unauthorized Hacks 9 | . 1 . 8 . . Terminals 9 | . 1 . 8 . . Botnet 2 | . . . 2 . . Operators 1 | . . . 1 . . Skim 6 | . 1 . 5 . . Fabricators . | . . . . . . Repair Stations . | . . . . . . Recycling Units . | . . . . . . Scanalyzers . | . . . . . . Garrison Access . | . . . . . . Data Cores Recovered 1 | . . . 1 . . Used . | . . . . . . Hacking Detections 12 | . 2 . 10 . . Full Trace Events . | . . . . . . Feedback Events . | . . . . . . Feedback Blocked . | . . . . . . Robot Schematics Acquired . | . . . . . . Robots Built . | . . . . . . Authchips . | . . . . . . Time . | . . . . . . Total Robot Build Rating . | . . . . . . Part Schematics Acquired 4 | . . . 4 . . Parts Built . | . . . . . . Authchips . | . . . . . . Time . | . . . . . . Total Part Build Rating . | . . . . . . Parts Repaired 2 | . . . 2 . . Time 58 | . . . 58 . . Parts Recycled . | . . . . . . Recycled Matter . | . . . . . . Retrieved Matter . | . . . . . . Retrieved Components . | . . . . . . Parts Scanalyzed 4 | . . . 4 . . Part Schematics Acquired 4 | . . . 4 . . Parts Damaged . | . . . . . . Bothacking | -11 -10 -10 -9 -9 -9 ------------ Run | Yrd Mat Min Mat Min Exi Used RIF Installer . | . . . . . . Robots Hacked 4 | . . . . . 4 Non-combat 3 | . . . . . 3 Combat 1 | . . . . . 1 Robot Hacks Applied 4 | . . . . . 4 parse_system 4 | . . . . . 4 Relay Couplers Released . | . . . . . . Fabnet Peak Effective % . | . . . . . . Robots Rewired . | . . . . . . Allies Hacked . | . . . . . . Hacks Repelled . | . . . . . . Allies | -11 -10 -10 -9 -9 -9 -------- Run | Yrd Mat Min Mat Min Exi Total Allies 5 | . . . . 5 . Largest Group 5 | . . . . 5 . Highest-Rated Group 93 | . . . . 93 . Highest-Rated Ally 31 | . . . . 31 . Total Orders . | . . . . . . Ally Attacks 37 | . . . . 37 . Total Damage 391 | . . . . 391 . Kills 5 | . . . . 5 . Allies Corrupted . | . . . . . . Allies Melted . | . . . . . . Intel | -11 -10 -10 -9 -9 -9 ------- Run | Yrd Mat Min Mat Min Exi Active Infowar (turns) 2183 | 96 168 926 993 . . Seismic 2183 | 96 168 926 993 . . Robot Analysis Total 1 | . . . 1 . . Derelict Logs Recovered 2 | . . 1 . 1 . Drone Launches . | . . . . . . Drone Recoveries . | . . . . . . Exploration | -11 -10 -10 -9 -9 -9 ------------- Run | Yrd Mat Min Mat Min Exi Turns Passed 8412 | 175 170 926 3654 1387 2100 Spaces Moved 3150 | 81 102 524 1245 523 675 Core 6 | 6 . . . . . Treads 3119 | 75 102 524 1220 523 675 Legs . | . . . . . . Wheels 25 | . . . 25 . . Hover . | . . . . . . Flight . | . . . . . . Fastest Speed 50 | 50 160 160 105 240 240 Average Speed 230 | 151 160 160 234 240 288 Slowest Speed 480 | 160 160 160 320 240 480 Overloaded Moves . | . . . . . . Propulsion Burnouts . | . . . . . . Robots Hopped . | . . . . . . Potential Cave-ins . | . . . . . . Cave-ins Triggered . | . . . . . . Exploration Rate (%) 61 | 5 26 93 89 85 71 Regions Visited 5 Branch Regions 3 Pre-discovered Areas 6 | . . 1 4 . 1 Known Exits Taken 2 | . . . 1 1 . Unknown Exits Taken 3 | 1 1 1 . . . Scrap Searched 2 | . . . . 2 . Spaces Dug 37 | . . 4 7 19 7 Terrain Destroyed 139 | . . 29 71 19 20 Melee . | . . . . . . Projectile 2 | . . . 2 . . AOE 137 | . . 29 69 19 20 Terrain Rammed . | . . . . . . Walls Destroyed . | . . . . . . Machines Disabled . | . . . . . . Actions | -11 -10 -10 -9 -9 -9 --------- Run | Yrd Mat Min Mat Min Exi Total 3933 | 106 110 561 1781 613 762 Wait 374 | . . 2 308 47 17 Move 3145 | 80 101 523 1244 522 675 Hop . | . . . . . . Pick Up 64 | 7 2 1 46 1 7 Fast Attach 11 | 7 1 . 3 . . Attach 11 | . . . 7 . 4 Detach 4 | . 1 . 2 . 1 Swap 53 | . 2 4 29 11 7 Drop 60 | . 3 3 35 8 11 Fire 205 | 12 . 28 105 24 36 Melee 4 | . . . . . 4 Ram . | . . . . . . Kick . | . . . . . . Crush 2 | . . . 2 . . Escape Stasis . | . . . . . . Rewire . | . . . . . . Trap . | . . . . . . Miscellaneous . | . . . . . . Route ------- -11/Scrapyard -10/Materials -10/Mines (discovered 2 exits: *Mat x2) -9/Materials (discovered 5 exits: *Mat x3 / *Min x2) -9/Mines (discovered 3 exits: *Mat x2 / *Exi) -9/Exiles (discovered 1 exit: [*Min]) History --------- Turn | Location | Event 8 | -11/Scrapyard | Discovered new exit (range 14) 176 | -11/Scrapyard | Entered Materials 308 | -10/Materials | Discovered new exit (range 16) 311 | -10/Materials | Build established: Mutant 346 | -10/Materials | Entered Mines 450 | -10/Mines | Received a Rocket Launcher from a helpful Derelict 451 | -10/Mines | Discovered new exit (range 12) 653 | -10/Mines | Discovered new exit (range 5) 982 | -10/Mines | Learned location of Storage (-8) 1272 | -10/Mines | Entered Materials 1272 | -9/Materials | Evolved 2 slots: Propulsion x1, Utility x1 1686 | -9/Materials | Build established: Scavenger-Mutant 2600 | -9/Materials | Repaired Hrd. Light Armor Plating 2627 | -9/Materials | Repaired Lgt. Treads 3264 | -9/Materials | Discovered new exit (range 16) 3546 | -9/Materials | Discovered new exit (range 7) 3897 | -9/Materials | Identified exit to Mines 3971 | -9/Materials | Learned location of Zion (-7) 4011 | -9/Materials | Learned 2 Materials zone layouts 4032 | -9/Materials | Learned location of Recycling (-8) 4058 | -9/Materials | Identified exit to Materials 4926 | -9/Materials | Entered Mines 4984 | -9/Mines | Discovered exit to Materials (range 3) 5088 | -9/Mines | Found a hidden stash of uninstalled traps 5117 | -9/Mines | Discovered exit to Materials (range 8) 5158 | -9/Mines | Assisted by bots powering up and referring to "LRC-V3" 5572 | -9/Mines | Joined a pair of Derelicts in attacking an 0b10 outpost 5805 | -9/Mines | Identified exit to Exiles 5972 | -9/Mines | A weapon hastily lodged in a ceiling crevice suddenly fell to the ground 5978 | -9/Mines | Excavation squad dispatched 5978 | -9/Mines | A large section of the Mines collapsed 6304 | -9/Mines | Deemed a non-threat by the Exiles lab entrance 6313 | -9/Mines | Entered Exiles 6369 | -9/Exiles | Met 8R-AWN 6432 | -9/Exiles | Met EX-HEX 6503 | -9/Exiles | Met EX-BIN 6579 | -9/Exiles | Met EX-DEC 6868 | -9/Exiles | Discovered new exit (range 14) 7179 | -9/Exiles | Aligned with FarCom system 7181 | -9/Exiles | Given EX-Vault access code 7237 | -9/Exiles | Opened EX-Vault 7301 | -9/Exiles | Warned to stay clear of 0b10 Research branches 7759 | -9/Exiles | Build established: Hauler-Mutant 8233 | -9/Exiles | Attacked by the Exiles 8380 | -9/Exiles | Core integrity fell below 50% 8413 | -9/Exiles | Self-destructed Last Messages --------------- 08370_ Critical hit (Destroy). 08370_ Penetrated by HV Slug. 08372_ Critical hit (Destroy). 08374_ Penetrated by HV Slug. 08374_ Critical hit (Destroy). 08377_ Penetrated by HV Slug. 08377_ Lgt. Treads destroyed. 08379_ Penetrated by HV Slug. 08382_ Critical hit (Destroy). 08382_ Med. Armor Plating destroyed. 08387_ HV Slug penetrates Wall. 08387_ Penetrated by HV Slug. 08391_ Critical hit (Destroy). 08391_ Imp. Assault Rifle destroyed. 08391_ HV Slug penetrates Wall. 08391_ HV Slug penetrates Earth. 08395_ Penetrated by HV Slug. 08399_ Critical hit (Destroy). 08399_ Lgt. Treads destroyed. 08399_ Penetrated by HV Slug. Map ----- +----------------------------------------------------+ | ?????????????????????????????????????????????????? | | ?????????#####???????????????????????????????????? | | ????????## ##??????????????????????????????????? | | ????????# #??????????????????????????????????? | | ????????# < #??????????????????????????????????? | | ????????# ] ###????????????????????????????????? | | ????????# !!! #????????????????????????????????? | | ????????# ] ##????????????????????????????????? | | ????????## #?????????????????????????????????? | | ?????????# ##????????????????????????????????? | | ?????????## #????????????#######?????????????? | | ??????????# #######??????#!!! "#?????????????? | | ??????????# #""##?????# "#?????????????? | | ??????????## #?????# "#?????????????? | | ???????????##" ##???## ""#????????????## | | ???????????#"" #####" ""#???????????? | | ???????????#### ##" ""#????????????" | | ??????????????## #"" #??????????????" | | ???????????????#"## #?????????????"" | | ???????????????####### ##????????????"" | | ?????????????????????### "#???????????? | | ???????????????########" # ##?????????" | | ???????????????# !!""""" ##???????# | | ???????????????#! g"## ##???### | | ???????????????#! # #####X# | | ???????????????#! ! @## | | ???????????????# !""""" ;;##### | | ???????????????########;# #???## | | ?????????????????????# # #????? # % | | ?????????????????????##?# #?????#####" | | ????????????????????????# #??????????"" | | ????????????????????????# #???????????## | | ????????????????????????# #????????????##" | | ????????????????????????# #?????????????#""" | | ????????????????????????? ?????????????##" | | ????????????????????????? ?????????????#"" | | ????????????????????????? ????????????##""" | | ????????????????????????? ????????????#""" | | ????????????????????????? ????????????#""" | | ????????????????????????? ????????????#"" | | ????????????????????????? ????????????#""" | | ??????????????????????????????????????#"" | | ??????????????????????????????????????##"" | | ???????????????????????????????????????#"""" | | ???????????????????????????????????????## | | ????????????????????????????????????????#" | | ????????????????????????????????????????#"""" | | ????????????????????????????????????????#"" | | ????????????????????????????????????????#" | | ????????????????????????????????????????#""" | +----------------------------------------------------+ Best States ------------- Heat Dissipation 50 Energy Generation 12 Energy Capacity 265 Matter Stores 300 Matter Capacity 300 Sight Range 16 Terrain Scan Density 10 Armor Coverage 225 Evasion (%) 40 Recoil Reduction 3 Item Schematics ----------------- Hacking Suite | -9/Materials | Scanalyzed Trap Extractor | -9/Materials | Scanalyzed Med. Armor Plating | -9/Materials | Scanalyzed Hrd. Light Armor Plating | -9/Materials | Scanalyzed Robot Schematics ------------------ None Fabricated ------------ Nothing Repaired ---------- Hrd. Light Armor Plating | 23% | -9/Materials Lgt. Treads | 16% | -9/Materials Alien Tech Used ----------------- None Achievements -------------- None Challenges ------------ None Game ------ Seed AdvancedShockDirector Manual? 0 Play Time 00:43:17 Cumulative 700.4 hours Start 2025.05.03 @ 10:48:54 End 2025.05.03 @ 12:47:25 Sessions 1 Manual Loads 0 Difficulty Rogue Special Mode None Game No. 388 Rogue 383 Adventurer 5 Explorer 0 Win Type - Total 27 Types 7/1/11/1/1/0/4/1/1/0 Lore% 90 Gallery% 89 Achievement% 82 Wizard Run 0 Options --------- Layout 0 ASCII 0 Keyboard 0 Movement Mouse Keybinds 0 Fullscreen 2 Font 18/SmallcapsGlow Map View 76x50 Zoom Use 52% Tactical HUD 1 Map Filters NONE Filters NONE Steam 1 RUN: e797f01a-39fb-49d1-8c1f-7081328b84d9